[Event "Mongolian Championship Women 2022"]
[Site "Chingis Khentii"]
[Date "2022.05.21"]
[Round "9.6"]
[White "Enkhtuul, Altan-Ulzii"]
[Black "Altantuya, Boldbaatar"]
[Result "1-0"]
[ECO "E19"]
[WhiteElo "2228"]
[BlackElo "2263"]
[Annotator "TA"]
[PlyCount "131"]
[EventDate "2022.05.12"]
[EventType "tourn"]
[EventCountry "MGL"]
[SourceTitle "playchess.com"]
[Source "ChessBase"]
[SourceQuality "1"]
[TimeControl "40/5400+30:1800+30"]

{[%evp 18,131,0,-8,59,36,70,47,53,56,126,115,166,87,163,170,182,150,157,148,175,181,347,335,330,339,341,341,301,331,327,317,312,317,321,327,333,333,322,333,333,333,333,333,341,337,337,285,380,333,425,425,426,410,421,419,429,429,418,394,506,376,691,685,618,618,779,779,774,755,714,493,493,461,690,461,29977,29978,29978,29979,29979,29971,29972,29973,29974,29975,29973,29973,29976,29977,29977,29978,29977,29971,29971,29972,29973,29974,29974,29974,29974,29968,29974,29975,29975,29975,29974,29973,29972,29974,29971,29958,29975,486,5052,60]} 1. d4 {[%emt 0:00:09]} Nf6 {[%emt 0:00:07]} 2. Nf3 {[%emt 0:00:19]} e6 {[%emt 0:00:12]} 3. c4 {[%emt 0:00:53]} b6 {[%emt 0:00:17]} 4. g3 {[%emt 0:00:13]} Bb7 {[%emt 0:00:14]} 5. Bg2 {[%emt 0:00:04]} Be7 {[%emt 0:00:11]} 6. O-O {[%emt 0:00:18]} O-O {[%emt 0:00:08]} 7. Nc3 {[%emt 0:05:16]} Ne4 {[%emt 0:00:16]} 8. Qc2 {[%emt 0:00:20]} f5 {[%emt 0:00:57]} 9. d5 {[%emt 0:04:35]} Nxc3 {[%emt 0:02:19]} 10. bxc3 {[%emt 0:00:54]} Bf6 {[%emt 0:08:06] E19: Queen's Indian: Old Main Line with 7...Ne4 8 Qc2 Nxc3 8 Qxc3.} ({Black should try} 10... Na6 $11) 11. Ba3 {[%emt 0:01:42]} Re8 {[%emt 0:00:14]} 12. Rfd1 {[%emt 0:01:07] White is more active.} Qc8 {[%emt 0:00:22] White is slightly better.} 13. Nd4 {[%emt 0:01:34] [#]} Bxd4 $146 {[%emt 0:12:20]} ({Black should play} 13... g6 $14) ({Predecessor:} 13... g6 14. e4 Na6 15. Nb5 d6 16. f4 Nc5 17. Bxc5 bxc5 18. e5 a6 19. exf6 axb5 20. cxb5 exd5 21. Rxd5 {0-1 (26) Slacky,S (2168)-Bednar,M (2266) Slovakia 2011}) 14. cxd4 $16 {[%emt 0:00:31]} (14. Rxd4 $6 d6 $11) 14... Na6 {[%emt 0:08:08]} (14... exd5 $16 {was called for.} 15. cxd5 (15. Qxf5 dxc4 16. Bd5+ Kh8 $14) 15... d6) 15. Rac1 {[%emt 0:01:22]} (15. e4 $1 $18) 15... d6 {[%emt 0:03:01]} (15... exd5 $16 {was worth a try.} 16. cxd5 (16. Qxf5 dxc4 17. Bd5+ Bxd5 $16) 16... d6) 16. e4 $18 {[%emt 0:21:10][%cal Be2e4,Be4d5,Bd5d6][%mdl 32]} exd5 {[%emt 0:01:21]} 17. exd5 {[%emt 0:00:21]} (17. exf5 Qd7 18. Bxd5+ (18. cxd5 Qf7 $16) 18... Bxd5 19. cxd5 Re7) (17. cxd5 $6 fxe4 18. Bxe4 Kh8 $16) 17... Qd7 {[%emt 0:07:51] [#]} 18. c5 $1 {[%emt 0:03:00] aiming for c6.} dxc5 {[%emt 0:01:33]} 19. dxc5 {[%emt 0:00:05]} bxc5 {[%emt 0:01:37]} (19... Nxc5 20. Bxc5 bxc5 21. Qxc5 (21. Qb3 Rab8 $16) 21... Re7) 20. Qb3 {[%emt 0:01:10]} Rab8 {[%emt 0:05:59]} 21. d6+ {[%emt 0:00:11]} Qf7 {[%emt 0:02:56]} 22. Qxf7+ {[%emt 0:12:20]} (22. Bxb7 Qxb3 23. axb3 Rxb7 $14) 22... Kxf7 {[%emt 0:00:03]} 23. dxc7 {[%emt 0:00:06]} Nxc7 {[%emt 0:00:26]} 24. Rd7+ {[%emt 0:01:06]} ({Not} 24. Bxc5 Bxg2 25. Rd7+ (25. Kxg2 Ne6 $16) 25... Ke6 26. Rd6+ (26. Rxc7 Be4 $14) 26... Kf7 $16) 24... Re7 {[%emt 0:00:08]} 25. Rxe7+ {[%emt 0:04:35]} Kxe7 {[%emt 0:00:02]} 26. Bxc5+ {[%emt 0:01:19]} Kd7 {[%emt 0:01:45]} 27. Rb1 {[%emt 0:00:39]} ({Weaker is} 27. Bxa7 Ra8 $16) 27... Bxg2 {[%emt 0:02:09]} 28. Rxb8 {[%emt 0:00:09][%mdl 4096] Endgame KRB-KBN} Bd5 {[%emt 0:00:12]} 29. Bxa7 {[%emt 0:01:35]} Bxa2 {[%emt 0:00:28]} 30. Rh8 {[%emt 0:02:22]} Ke7 {[%emt 0:04:03]} 31. Rxh7 {[%emt 0:01:59]} Ne6 {[%emt 0:00:08]} 32. Rh8 {[%emt 0:00:34]} Bd5 {[%emt 0:02:28]} 33. f4 {[%emt 0:00:20]} Be4 {[%emt 0:00:43]} 34. Kf2 {[%emt 0:02:35]} Bd5 {[%emt 0:00:22]} 35. Rb8 {[%emt 0:00:53]} Bc6 {[%emt 0:01:56]} 36. Ke3 {[%emt 0:00:34]} Bg2 {[%emt 0:01:35]} 37. Rb2 {[%emt 0:00:33]} Bc6 {[%emt 0:02:05]} 38. Bd4 {[%emt 0:00:13]} Kd6 {[%emt 0:05:25]} 39. Rd2 {[%emt 0:03:06] Strongly threatening Bxg7+.} Bd5 $2 {[%emt 0:00:54]} (39... Ke7 40. Bc3 Bh1) 40. Be5+ {[%emt 0:00:00]} Kc6 {[%emt 0:00:00]} 41. h3 {[%emt 0:01:35][%cal Bh2h3,Bh3g4,Bg4g5,Bg5g6][%mdl 32]} g6 {[%emt 0:01:15]} 42. g4 {[%emt 0:00:06]} fxg4 {[%emt 0:00:35]} 43. hxg4 {[%emt 0:00:07]} Nd8 {[%emt 0:01:59]} 44. f5 {[%emt 0:10:12]} gxf5 {[%emt 0:00:37]} 45. g5 {[%emt 0:00:22] White threatens Kf4 and mate.} Nf7 {[%emt 0:09:19]} (45... Ne6 $142 46. g6 Kc5 47. Rc2+ Kb5) 46. Kf4 {[%emt 0:00:28] Intending g6 and mate.} Be4 {[%emt 0:00:48]} (46... Nxg5 $18 47. Rc2+ Kb5 48. Kxg5 Be4) 47. g6 {[%emt 0:04:58]} Nh6 {[%emt 0:00:13]} 48. Rd8 {[%emt 0:02:43]} Bd5 {[%emt 0:00:52]} 49. Bg7 {[%emt 0:05:07]} Ng8 {[%emt 0:00:37]} 50. Bf8 {[%emt 0:07:39]} Bb3 {[%emt 0:00:42]} 51. Kxf5 {[%emt 0:00:58]} Kc7 {[%emt 0:00:20]} 52. Rd2 {[%emt 0:00:25]} Kc6 {[%emt 0:02:48]} 53. Rb2 {[%emt 0:00:43]} Bd5 {[%emt 0:01:19]} 54. Ke5 {[%emt 0:00:07]} Bf3 {[%emt 0:00:35]} 55. Rd2 {[%emt 0:01:00]} Bh5 {[%emt 0:01:11]} 56. Kf5 {[%emt 0:10:31]} Kc7 {[%emt 0:01:58]} 57. Rh2 {[%emt 0:04:58]} Bd1 {[%emt 0:04:07]} 58. Ke5 {[%emt 0:00:55]} Kc6 {[%emt 0:00:56]} 59. Ba3 {[%emt 0:00:50]} Kc7 {[%emt 0:02:56]} 60. Rb2 {[%emt 0:01:43]} Bh5 {[%emt 0:05:05]} 61. Bd6+ {[%emt 0:00:07]} Kc6 {[%emt 0:02:30]} 62. Rb8 {[%emt 0:00:36]} Nh6 {[%emt 0:00:21]} 63. Rh8 {[%emt 0:04:28]} Ng4+ {[%emt 0:00:13]} 64. Kf4 {[%emt 0:01:10]} Nf6 {[%emt 0:04:16] [#]} 65. Be5 {[%emt 0:00:38]} (65. g7 $142 $1 Be8 (65... Kxd6 66. Rh6) 66. Ke5 Ng4+ 67. Ke6 Ne3 68. g8=Q Bd7+ 69. Ke7 Nd5+ 70. Kd8) 65... Nd5+ {[%emt 0:00:44]} (65... Bxg6 $142 66. Bxf6 Kd6 67. Rd8+ Ke6) 66. Ke4 $2 {[%emt 0:10:52] Black got outplayed after the opening.  Weighted Error Value: White=0.18 (very precise) /Black=0.49} ({Only move:} 66. Kg5 $18 Bxg6 67. Kxg6) 1-0

[Event "Mongolian Championship Women 2022"]
[Site "Chingis Khentii"]
[Date "2022.05.22"]
[Round "10.1"]
[White "Mungunzul, Bat-Erdene"]
[Black "Altantuya, Boldbaatar"]
[Result "1-0"]
[ECO "E32"]
[WhiteElo "2091"]
[BlackElo "2263"]
[Annotator "TA"]
[PlyCount "87"]
[EventDate "2022.05.12"]
[EventType "tourn"]
[EventCountry "MGL"]
[SourceTitle "playchess.com"]
[Source "ChessBase"]
[SourceQuality "1"]
[TimeControl "40/5400+30:1800+30"]

{[%evp 12,87,18,12,8,8,3,10,11,0,0,0,0,8,0,-25,-18,-13,-3,-4,-5,-18,-10,-2,0,0,0,0,5,0,21,20,53,51,44,40,72,62,62,26,0,0,96,41,145,140,140,125,124,142,316,314,290,292,313,314,337,325,556,508,12824,2518,29983,29984,29984,29984,29991,29992,29992,29985,29985,29986,29986,29987,29987,29988,29987,29988]} 1. d4 {[%emt 0:00:02]} Nf6 {[%emt 0:00:05]} 2. c4 {[%emt 0:00:06]} e6 {[%emt 0:00:05]} 3. Nc3 {[%emt 0:00:06]} Bb4 {[%emt 0:00:13]} 4. Qc2 {[%emt 0:00:15]} O-O {[%emt 0:00:32]} 5. Bg5 {[%emt 0:01:18]} h6 {[%emt 0:05:38]} 6. Bh4 {[%emt 0:00:49]} d6 {[%emt 0:03:25]} 7. Nf3 {[%emt 0:10:57]} Bxc3+ {[%emt 0:01:56] E32: Nimzo-Indian: Classical (4 Qc2): 4...0-0.} 8. Qxc3 {[%emt 0:06:51]} b6 {[%emt 0:03:42]} 9. e3 {[%emt 0:02:25]} Bb7 {[%emt 0:00:27] The position is equal.} 10. Be2 {[%emt 0:00:27]} Nbd7 {[%emt 0:00:35][%cal Bb8d7,Bd7f6,Bf6e4,Be4g3][%mdl 32]} 11. O-O {[%emt 0:01:07]} g5 {[%emt 0:02:55]} 12. Bg3 {[%emt 0:03:34]} Ne4 {[%emt 0:00:11] [#]} 13. Qc1 $146 {[%emt 0:00:17]} ({Predecessor:} 13. Qc2 f5 14. Nd2 Nxg3 15. hxg3 g4 16. e4 Qg5 17. d5 f4 18. dxe6 Ne5 19. gxf4 Rxf4 {0-1 (87) Kretov,E (2263)-Karjakin,S (2777) Moscow 2014}) 13... f5 {[%emt 0:01:31]} 14. Nd2 {[%emt 0:01:44]} Ndf6 {[%emt 0:01:44]} 15. Nxe4 {[%emt 0:06:40]} Nxe4 {[%emt 0:00:12]} 16. f3 {[%emt 0:02:19]} Nxg3 {[%emt 0:00:43]} 17. hxg3 {[%emt 0:00:09]} Qe7 {[%emt 0:08:42]} 18. Qc3 {[%emt 0:05:51]} Rad8 {[%emt 0:11:31]} 19. b4 {[%emt 0:03:38]} c5 {[%emt 0:03:35]} 20. a3 {[%emt 0:06:12]} Qc7 {[%emt 0:06:40]} 21. Rac1 {[%emt 0:03:54]} a5 {[%emt 0:16:15]} 22. bxa5 {[%emt 0:09:17]} bxa5 {[%emt 0:00:22]} 23. Kf2 {[%emt 0:00:26]} Kh7 {[%emt 0:15:12]} 24. Rh1 {[%emt 0:03:43]} e5 {[%emt 0:04:34]} 25. dxe5 {[%emt 0:04:55]} dxe5 {[%emt 0:00:08]} 26. Rb1 {[%emt 0:00:05]} Ba6 {[%emt 0:05:08] Prevents Rb5.} (26... Bc6 $11 {keeps the balance.}) 27. g4 {[%emt 0:00:38]} (27. Rh5 $16) 27... Kg7 {[%emt 0:05:59]} ({Black should try} 27... Bc8 $1 $14) 28. gxf5 $16 {[%emt 0:04:57]} Rxf5 {[%emt 0:00:10]} 29. Bd3 {[%emt 0:06:27][%cal Be2d3,Bd3e4,Be4d5][%mdl 32]} Rf6 {[%emt 0:00:36]} 30. Be4 {[%emt 0:00:18] Prevents Bb7.} g4 $2 {[%emt 0:01:14] This move loses the game for Black.} (30... Bc8 $16 31. g4 Kh8) 31. Rh4 $18 {[%emt 0:00:35][%cal Bh1h4,Bh4g4,Bg4e4][%mdl 32]} gxf3 {[%emt 0:00:28]} 32. gxf3 {[%emt 0:00:05] Chess con chili.} Qd6 {[%emt 0:00:23] [#]} 33. Rg1+ $1 {[%emt 0:01:09]} (33. Qxa5 Bxc4 34. Rh5 Re6 $16) 33... Kh8 {[%emt 0:00:38]} 34. Bd5 {[%emt 0:00:20]} ({Not} 34. Qxa5 Bxc4 35. Rh5 Bb3 $14) 34... Qc7 $2 {[%emt 0:01:07]} (34... Bc8 35. f4 (35. Qxa5 Rdf8 $16) 35... Re8) 35. Rhg4 {[%emt 0:00:44] Rg8+ would kill now.} Qe7 {[%emt 0:00:52]} (35... Bc8 $142 36. Rg7 Qxg7) 36. Qc2 {[%emt 0:01:57]} (36. Qd3 $142 Qf8 37. Qe4) 36... e4 {[%emt 0:00:21]} 37. Rxe4 {[%emt 0:00:32] White mates.} Qd6 {[%emt 0:00:36]} 38. Reg4 {[%emt 0:00:26]} Rff8 {[%emt 0:00:32]} 39. Qc3+ {[%emt 0:00:17]} Rf6 {[%emt 0:00:26]} 40. Rg8+ {[%emt 0:00:00]} Rxg8 {[%emt 0:00:00]} 41. Rxg8+ {[%emt 0:00:49]} Kh7 {[%emt 0:00:11]} 42. Qd3+ {[%emt 0:00:10]} Rg6 {[%emt 0:00:13]} 43. Rxg6 {[%emt 0:00:04]} Qxg6 {[%emt 0:00:08]} 44. Be4 {[%emt 0:00:03] Weighted Error Value: White=0.06 (flawless) /Black=0.47} 1-0

[Event "Mongolian Championship Women 2022"]
[Site "Chingis Khentii"]
[Date "2022.05.22"]
[Round "10.2"]
[White "Munguntuul, Batkhuyag"]
[Black "Munkhzul, Davaakhuu"]
[Result "1-0"]
[ECO "C86"]
[WhiteElo "2443"]
[BlackElo "1991"]
[Annotator "TA"]
[PlyCount "79"]
[EventDate "2022.05.12"]
[EventType "tourn"]
[EventCountry "MGL"]
[SourceTitle "playchess.com"]
[Source "ChessBase"]
[SourceQuality "1"]
[TimeControl "40/5400+30:1800+30"]

{[%evp 16,79,6,0,14,-6,-14,-19,0,-17,-3,-15,0,-22,-12,-45,-60,-57,0,0,73,43,88,94,91,85,98,71,97,104,125,127,129,83,259,262,386,386,379,366,378,387,433,418,544,554,548,539,800,618,800,633,851,770,1093,1025,1002,795,770,789,2239,1512,6514,6500,5481,5481]} 1. e4 {[%emt 0:00:01]} e5 {[%emt 0:00:04]} 2. Nf3 {[%emt 0:00:04]} Nc6 {[%emt 0:00:04]} 3. Bb5 {[%emt 0:00:05][%cal Bf1b5,Bb5a4,Ba4b3][%mdl 32]} a6 {[%emt 0:00:04]} 4. Ba4 {[%emt 0:00:06]} Nf6 {[%emt 0:00:04]} 5. Qe2 {[%emt 0:00:06]} Be7 {[%emt 0:00:15]} 6. c3 {[%emt 0:00:34]} b5 {[%emt 0:00:29]} 7. Bb3 {[%emt 0:00:03]} O-O {[%emt 0:00:32] 7...0-0 scores better than 7...d6.} 8. O-O {[%emt 0:00:10]} d5 {[%emt 0:01:14]} 9. d3 {[%emt 0:00:41]} Be6 {[%emt 0:00:27] C86: Closed Ruy Lopez: Worrall Attack.} 10. Nbd2 {[%emt 0:10:48]} h6 {[%emt 0:01:06]} 11. Re1 {[%emt 0:07:10][%cal Of3e5]} Re8 {[%emt 0:01:22] The position is equal.} 12. exd5 {[%emt 0:06:20]} Nxd5 {[%emt 0:01:17]} 13. Ne4 {[%emt 0:00:06]} Bf8 {[%emt 0:06:16]} 14. Ng3 {[%emt 0:07:33]} Qd7 {[%emt 0:14:58]} 15. Nh5 {[%emt 0:07:12][%cal Oc1h6] [#]} Rad8 $146 {[%emt 0:35:33]} ({Predecessor:} 15... Bf5 16. Bxh6 Bg6 17. Ng5 Nf4 18. Nxf4 exf4 19. Ne4 Bxe4 20. dxe4 gxh6 21. Rad1 Bd6 22. Qh5 Ne5 23. g3 fxg3 24. f4 Nc4 25. Bxc4 bxc4 26. hxg3 Qc6 {0-1 (26) Ottenburg,R (2065)-Simmelink,J (2241) IECG email 2001}) 16. h3 {[%emt 0:23:24][%cal Oc1h6]} Bf5 {[%emt 0:08:22]} ({Black should play} 16... f6 $15) 17. Nh4 $11 {[%emt 0:04:46] Black must now prevent Bxd5.} Bh7 {[%emt 0:13:09] [#]} (17... Nf4 $11 {remains equal.} 18. Qf3 Bxd3) 18. Bxh6 $1 $16 {[%emt 0:03:29] Hoping for Bg5.} Nf4 {[%emt 0:02:46]} ({Not} 18... gxh6 19. Bxd5 Bg7 20. Nxg7 Kxg7 21. Be4 $16) (18... Na5 19. Qf3) 19. Bxf4 {[%emt 0:03:24]} ({Avoid the trap} 19. Nxf4 $2 exf4 20. Qh5 gxh6 $19) 19... exf4 {[%emt 0:00:07]} 20. Qd2 {[%emt 0:02:40]} Na5 {[%emt 0:04:44]} 21. Rxe8 {[%emt 0:02:37]} (21. Nxf4 {is more complex.} Rxe1+ 22. Rxe1 Bxd3 23. Nf3) 21... Qxe8 {[%emt 0:02:26]} 22. Nxf4 {[%emt 0:02:29]} Nxb3 {[%emt 0:00:17]} 23. axb3 {[%emt 0:00:02]} g5 {[%emt 0:01:06][%csl LRf4,LRh4] [#]} 24. Re1 {[%emt 0:08:52]} (24. Nh5 $142 $1 Qe7 25. Nf3 (25. Rxa6 $2 Rxd3 26. Qc1 gxh4 $19)) 24... Qc6 {[%emt 0:00:15] This move loses the game for Black.} (24... Qd7 $2 {[#]} 25. Nh5 $1 Be7 26. Nf3 $18) (24... Be7 $16) 25. Ne6 $1 $18 {[%emt 0:00:46]} Rd5 {[%emt 0:00:52]} (25... Re8 {was called for.}) 26. Nxf8 {[%emt 0:00:44]} Kxf8 {[%emt 0:00:12]} 27. Nf3 {[%emt 0:00:08]} Qf6 {[%emt 0:01:30]} 28. d4 {[%emt 0:00:22][%cal Bd3d4,Bd4e5][%mdl 32]} Rf5 {[%emt 0:02:06]} 29. Re5 {[%emt 0:00:36]} g4 {[%emt 0:02:24]} 30. hxg4 {[%emt 0:00:26] White is clearly winning.} Rxe5 {[%emt 0:00:05]} 31. dxe5 {[%emt 0:00:25][%mdl 4096] Endgame KQB-KQN} Qg6 {[%emt 0:01:00]} 32. Ng5 {[%emt 0:01:31]} Bg8 {[%emt 0:00:37]} 33. b4 {[%emt 0:01:22] Qd8+ is the strong threat.} Kg7 {[%emt 0:00:15]} 34. Qf4 {[%emt 0:00:46]} Qb1+ {[%emt 0:00:51]} 35. Kh2 {[%emt 0:00:02] White threatens Qf6+ and mate.} Qg6 {[%emt 0:00:09] Prevents Qf6+.} 36. Kg3 {[%emt 0:00:40]} Qd3+ {[%emt 0:00:25]} 37. f3 {[%emt 0:00:20]} Qd5 {[%emt 0:00:06]} 38. Ne4 {[%emt 0:01:14]} Qd1 {[%emt 0:00:26]} 39. Qg5+ {[%emt 0:00:12]} Kf8 {[%emt 0:00:12]} 40. Nf6 {[%emt 0:00:00] Weighted Error Value: White=0.22 (precise) /Black=0.44} 1-0

[Event "Mongolian Championship Women 2022"]
[Site "Chingis Khentii"]
[Date "2022.05.22"]
[Round "10.3"]
[White "Tsetsenbileg, Munkhbayar"]
[Black "Nomindalai Tumurbaatar"]
[Result "0-1"]
[ECO "A59"]
[WhiteElo "1830"]
[BlackElo "2111"]
[Annotator "TA"]
[PlyCount "72"]
[EventDate "2022.05.12"]
[EventType "tourn"]
[EventCountry "MGL"]
[SourceTitle "playchess.com"]
[Source "ChessBase"]
[SourceQuality "1"]
[TimeControl "40/5400+30:1800+30"]

{[%evp 22,72,47,21,34,0,9,0,17,0,44,0,0,0,0,0,0,0,0,0,16,-53,-58,-286,-281,-433,-455,-448,-420,-712,-597,-598,-329,-572,-572,-592,-580,-1266,-1250,-1287,-1193,-1173,0,-29993,-29994,-29994,-29995,-29995,-29996,-29996,-29997,-29997,-29998]} 1. d4 {[%emt 0:00:02]} Nf6 {[%emt 0:00:10]} 2. c4 {[%emt 0:00:07]} c5 {[%emt 0:00:12]} 3. d5 {[%emt 0:00:16]} b5 {[%emt 0:00:12]} 4. cxb5 {[%emt 0:04:04]} a6 {[%emt 0:00:17]} 5. bxa6 {[%emt 0:00:06]} g6 {[%emt 0:01:38]} 6. Nc3 {[%emt 0:00:24]} Bxa6 {[%emt 0:00:07]} 7. e4 {[%emt 0:00:42]} Bxf1 {[%emt 0:00:11]} 8. Kxf1 {[%emt 0:00:01]} d6 {[%emt 0:00:15]} 9. g3 {[%emt 0:00:23]} Bg7 {[%emt 0:00:12]} 10. Kg2 {[%emt 0:00:13]} O-O {[%emt 0:00:08]} 11. f4 {[%emt 0:00:32]} Nbd7 {[%emt 0:15:47][%cal Bb8d7,Bd7b6,Bb6a4][%mdl 32]} 12. Nf3 {[%emt 0:02:13]} Qa5 {[%emt 0:00:27] A59: Benko/Volga Gambit: White castles by hand.} 13. Qe2 {[%emt 0:02:53]} Qa6 {[%emt 0:11:23] [#] ...Qxe2+ is the strong threat.} 14. Qc2 $146 {[%emt 0:02:49]} ({Predecessor:} 14. Re1 Nb6 15. h3 Qxe2+ 16. Rxe2 Rfb8 17. Rb1 Na4 18. Nd2 Nd7 19. Nd1 Rb7 20. b3 {½-½ (44) Garcia,A (2295)-Mannion,S (2355) Moscow 1994}) 14... Rfb8 {[%emt 0:02:33] The position is equal.} 15. Re1 {[%emt 0:05:17]} Nb6 {[%emt 0:01:24]} 16. Re2 {[%emt 0:03:58]} Na4 {[%emt 0:12:18]} 17. Nd1 {[%emt 0:06:20]} Rb4 {[%emt 0:05:56] Threatens to win with ...Rc4.} 18. Re3 {[%emt 0:28:29]} Rc4 {[%emt 0:04:55]} 19. Qe2 {[%emt 0:00:26]} Ng4 {[%emt 0:02:41]} 20. Rd3 {[%emt 0:07:07]} Rb4 {[%emt 0:04:29][%cal Oa4b2] Strongly threatening ...Nxb2!} 21. Rb1 {[%emt 0:04:08]} (21. Rd2 $11) 21... c4 $1 $15 {[%emt 0:14:32]} 22. Ra3 {[%emt 0:13:47] Black converts the advantage convincingly.} ({Only move:} 22. Rd2 $1 $15) 22... c3 $1 $19 {[%emt 0:01:32]} 23. Qc2 {[%emt 0:00:01]} (23. Qxa6 {might work better.} Rxa6 24. Ne1) 23... cxb2 {[%emt 0:02:25]} 24. Nxb2 {[%emt 0:04:03]} Rc8 {[%emt 0:00:43]} 25. Qd2 {[%emt 0:01:56]} (25. Qd3 $142 Qxd3 26. Nxd3 Rxb1 27. Rxa4) 25... Qb5 {[%emt 0:04:10]} 26. e5 {[%emt 0:04:30]} Nxb2 {[%emt 0:06:03]} 27. Rxb2 $2 {[%emt 0:00:16] [#]} (27. h3 {was necessary.} Nd1 28. Rxb4 Nde3+ 29. Rxe3 Nxe3+ 30. Kf2) 27... Rxc1 $1 {[%emt 0:05:02][%csl Gc1][%cal Rb5f1][%mdl 512]} 28. Ra8+ {[%emt 0:04:14]} Bf8 {[%emt 0:00:02][%csl Gc1][%cal Rb5f1]} 29. Kh3 {[%emt 0:00:23]} Nf2+ {[%emt 0:01:12]} 30. Kh4 {[%emt 0:00:53] [#]} Qf1 $1 {[%emt 0:01:13] ( -> ...Qh3+)} 31. Ng5 {[%emt 0:02:03] [#] Prevents Qh3+.} (31. Qxf2 Rxb2) 31... Rxb2 $2 (31... h6 $1 $19 32. Qxf2 hxg5+ 33. Kg4 Rxb2 34. Qxf1 Rxf1 35. exd6 exd6 36. fxg5 Rxh2) 32. Qxb2 $4 {[%emt 0:00:00][%mdl 8192] [#]} (32. Qa5 $11 Rc7 33. Qxc7) 32... Qd1 $1 {[%emt 0:02:41][%csl Gg6][%cal Rd1h5] Black mates.} 33. Rxf8+ {[%emt 0:02:26]} Kxf8 {[%csl Gf2][%cal Rd1g4]} 34. Nxh7+ Kg8 {[%emt 0:00:21][%csl Gf2][%cal Rd1g4]} 35. Nf6+ {[%emt 0:01:05]} exf6 {[%emt 0:00:02][%csl Gg6][%cal Rd1h5]} 36. Qb8+ {[%emt 0:00:04]} Kh7 {[%emt 0:00:06] Weighted Error Value: White=0.86/Black=0.44} 0-1

[Event "Mongolian Championship Women 2022"]
[Site "Chingis Khentii"]
[Date "2022.05.22"]
[Round "10.4"]
[White "Amin-Erdene, Bayanmunkh"]
[Black "Enkhtuul, Altan-Ulzii"]
[Result "1/2-1/2"]
[ECO "B09"]
[WhiteElo "1425"]
[BlackElo "2228"]
[Annotator "TA"]
[PlyCount "35"]
[EventDate "2022.05.12"]
[EventType "tourn"]
[EventCountry "MGL"]
[SourceTitle "playchess.com"]
[Source "ChessBase"]
[SourceQuality "1"]
[TimeControl "40/5400+30:1800+30"]

{[%evp 32,35,0,0,0,0]} 1. d4 {[%emt 0:00:03]} Nf6 {[%emt 0:00:04]} 2. Nc3 {[%emt 0:00:07]} d6 {[%emt 0:00:20]} 3. e4 {[%emt 0:00:44]} g6 {[%emt 0:00:24]} 4. f4 {[%emt 0:00:12]} Bg7 {[%emt 0:00:04]} 5. Nf3 {[%emt 0:00:06][%cal Bg1f3,Bf3g5,Bg5e6][%mdl 32]} c5 {[%emt 0:00:13]} 6. Bb5+ {[%emt 0:00:08]} Bd7 {[%emt 0:00:17]} 7. e5 {[%emt 0:00:07]} Ng4 {[%emt 0:00:48]} 8. e6 {[%emt 0:00:09] [#]} fxe6 $146 {[%emt 0:00:07]} ({Predecessor:} 8... Bxb5 9. exf7+ Kxf7 10. Ng5+ Ke8 11. Ne6 Bxd4 12. Nxd8 Bf2+ 13. Kd2 Be3+ 14. Ke1 Bf2+ {½-½ (14) Shabalov,A (2585)-Akobian,V (2606) Beijing 2008}) 9. Ng5 {[%emt 0:00:06]} Bxb5 {[%emt 0:00:11]} 10. Nxe6 {[%emt 0:00:06]} Bxd4 {[%emt 0:00:13]} 11. Nxd8 {[%emt 0:00:08]} Bf2+ {[%emt 0:00:04]} 12. Kd2 {[%emt 0:00:05]} Be3+ {[%emt 0:00:04]} 13. Ke1 {[%emt 0:00:07]} Bf2+ {[%emt 0:00:08]} 14. Kd2 {[%emt 0:00:04]} Be3+ {[%emt 0:00:05]} 15. Ke1 {[%emt 0:00:04]} Bf2+ {[%emt 0:00:04]} 16. Kd2 {[%emt 0:00:06]} Be3+ {[%emt 0:00:10]} 17. Ke1 {[%emt 0:00:05]} Bf2+ {[%emt 0:00:04] A strong pair of Bishops. B09: Pirc Defence: Austrian Attack.} 18. Kd2 {[%emt 0:00:06] An interesting draw.} 1/2-1/2